Workbook

Sheet 1(定) (hidden)
A1: 附件1
A2: 2019年全区棚户区改造开工情况通报表 （截至2019年11月25日） | O2: 退了改过 | P2: 今年新开工 | U2: 多 | V2: 少
A3: 任务 城市 | B3: 2019年度国家目标任务 | K3: 2019年自治区新增任务 | O3: 任务 城市 | P3: 2019年国家 | Q3: 2018自治区新增 | R3: 2019年国家储备 | S3: 2019自治区新增 | T3: 1+2+3合计 | U3: 新建实物安置 | Z3: 货币安置 | AH3: 合计 | AI3: 2018年开工底数(2018年自治区新增)
B4: 年度目标责任套（户）数 | C4: 总改造套数 | D4: 总改造完成率 | E4: 其中：2019年国家下达责任目标任务（含2018年自治区新增任务结转） | H4: 其中：2019年国家储备 | K4: 城市棚户区改造完成情况 | Y4: 小计 | Z4: 其中：政府收购房源安置 | AC4: 其中：政府搭桥，居民选购商品住房安置 | AE4: 其中：居民自由支配货币补偿款
E5: 目标责任套数 | F5: 改造户数 | G5: 改造完成率 | H5: 目标责任套数 | I5: 改造户数 | J5: 改造完成率 | K5: 目标任务套数 | L5: 改造户数 | M5: 改造完成率
A7: 编号栏 | B7: 1=4+7 | C7: 2=5+8 | D7: 3=2/1 | E7: 5 | F7: 6 | G7: 7=6/5 | H7: 8 | I7: 9 | J7: 10=9/8 | K7: 11 | L7: 12 | M7: 13=12/11 | P7: 1 | Q7: 2 | R7: 3 | S7: 4 | U7: 2018自新增 | V7: 2019国家 | W7: 2019新增 | X7: 合计 | Z7: 2018自新增 | AA7: 2019国家 | AB7: 2019新增 | AC7: 2018自新增 | AD7: 2019国家 | AE7: 2018自新增 | AF7: 2019国家 | AG7: 2019新增
A8: 国家任务 | B8: 120000 | C8: =SUM(C10:C23) -> 148696 | D8: =C8/B8 -> 123.91% | E8: 120000 | F8: =SUM(F10:F23) -> 125809 | G8: =F8/E8 -> 104.84% | H8: - | I8: - | J8: - | K8: - | L8: - | M8: - | O8: 国家任务
A9: 自治区任务数 | B9: =SUM(B10:B25) -> 153012 | C9: =SUM(C10:C25) -> 159060 | D9: 103.95% | E9: =SUM(E10:E23) -> 122883 | F9: =SUM(F10:F23) -> 125809 | G9: 102.38% | H9: =SUM(H10:H25) -> 24756 | I9: 26458 | J9: =I9/H9 -> 106.88% | K9: 99690 | L9: 12604 | M9: =L9/K9 -> 12.64% | O9: 自治区任务数 | T9: =SUM(T10:T25) -> 159060 | U9: =SUM(U10:U23) -> 30846 | V9: 111714 | X9: 142560 | Y9: 6136 | Z9: 142 | AA9: 759 | AB9: 542 | AC9: =SUM(AC10:AC23) -> 0 | AD9: 0 | AE9: 3317 | AF9: 1918 | AG9: 522 | AI9: =SUM(AI10:AI23) -> 23572
A10: 南宁市 | B10: =E10+H10 -> 9050 | C10: =F10+I10 -> 9050 | D10: 100.00% | E10: 7051 | F10: =P10+Q10 -> 6730 | G10: 95.45% | H10: 1999 | I10: =R10 -> 2320 | J10: 116.06% | K10: 8773 | L10: =S10 -> 1349 | M10: 15.38% | O10: 南宁市 | P10: 4205 | Q10: 2525 | R10: 2320 | S10: 1349 | T10: =P10+Q10+R10 -> 9050 | U10: 2361 | V10: 6525 | X10: =U10+V10 -> 8886 | Y10: =Z10+AA10+AC10+AD10+AE10+AF10 -> 164 | Z10: 0 | AA10: 0 | AC10: 0 | AD10: 0 | AE10: 164 | AF10: 0 | AH10: =U10+V10+Z10+AA10+AC10+AD10+AE10+AF10 -> 9050 | AI10: 2525
A11: 柳州市 | B11: =E11 -> 11061 | C11: 12189 | D11: 110.20% | E11: 11061 | F11: =P11+Q11 -> 12189 | G11: 110.20% | H11: - | I11: 0 | J11: - | K11: 11020 | L11: 1197 | M11: 10.86% | O11: 柳州市 | P11: 9937 | Q11: 2252 | S11: 1197 | T11: 12189 | U11: 2252 | V11: =7153+1757 -> 8910 | W11: 1197 | X11: 11162 | Y11: 1027 | Z11: 0 | AA11: 0 | AC11: 0 | AD11: 0 | AE11: 0 | AF11: 1027 | AH11: 12189 | AI11: 2252
A12: 桂林市 | B12: 5984 | C12: 6025 | D12: 100.69% | E12: 5984 | F12: 6025 | G12: 100.69% | H12: - | I12: 0 | J12: - | K12: 4850 | L12: 1940 | M12: 40.00% | O12: 桂林市 | P12: 3590 | Q12: 2435 | S12: 1940 | T12: 6025 | U12: 994 | V12: 3143 | W12: 1940 | X12: 4137 | Y12: 1888 | Z12: 0 | AA12: 0 | AC12: 0 | AD12: 0 | AE12: 1441 | AF12: 447 | AH12: 6025 | AI12: 2369
A13: 梧州市 | B13: =E13+H13 -> 4099 | C13: 4099 | D13: 100.00% | E13: 3766 | F13: 3766 | G13: 100.00% | H13: 333 | I13: 333 | J13: 100.00% | K13: 8402 | L13: 1991 | M13: 23.70% | O13: 梧州市 | P13: 2186 | Q13: 1580 | R13: 333 | S13: 1991 | T13: 4099 | U13: 601 | V13: 2255 | W13: 1981 | X13: 2856 | Y13: 1243 | Z13: 0 | AA13: 0 | AC13: 0 | AD13: 0 | AE13: 979 | AF13: 264 | AG13: 10 | AH13: 4099 | AI13: 0 | AJ13: 藤县藤州镇（田寮片区）棚户区改造工程项目（二期）Ⅱ阶段-2019国家
A14: 北海市 | B14: 241 | C14: 241 | D14: 100.00% | E14: 241 | F14: 241 | G14: 100.00% | H14: - | I14: 0 | J14: - | K14: 439 | L14: 0 | M14: 0.00% | O14: 北海市 | Q14: 241 | S14: 0 | T14: 241 | U14: 241 | V14: 0 | X14: 241 | Y14: 0 | Z14: 0 | AA14: 0 | AC14: 0 | AD14: 0 | AE14: 0 | AF14: 0 | AH14: 241 | AI14: 241
A15: 防城港市 | B15: 1514 | C15: 1514 | D15: 100.00% | E15: 1514 | F15: 1514 | G15: 100.00% | H15: - | I15: 0 | J15: - | K15: 1541 | L15: 0 | M15: 0.00% | O15: 防城港市 | P15: 1514 | S15: 0 | T15: 1514 | V15: 1514 | X15: 1514 | Y15: 0 | AH15: 1514
A16: 钦州市 | B16: =E16+H16 -> 8700 | C16: 9870 | D16: 113.45% | E16: 6791 | F16: 7912 | G16: 116.51% | H16: 1909 | I16: 1958 | J16: =I16/H16 -> 102.57% | K16: 3141 | L16: 0 | M16: 0.00% | O16: 钦州市 | P16: 6413 | Q16: 1499 | R16: 1958 | S16: 0 | T16: 9870 | U16: 1466 | V16: 8219 | X16: 9685 | Y16: 185 | AE16: 33 | AF16: 152 | AH16: 9870 | AI16: 188
A17: 贵港市 | B17: =E17 -> 2848 | C17: 3139 | D17: 110.22% | E17: 2848 | F17: 3139 | G17: 110.22% | H17: - | I17: 0 | J17: - | K17: 4952 | L17: 920 | M17: 18.58% | O17: 贵港市 | P17: 840 | Q17: 2299 | S17: 920 | T17: 3139 | U17: 2299 | V17: 840 | W17: 920 | X17: 3139 | Y17: 0 | AH17: 3139 | AI17: 2152
A18: 玉林市 | B18: 6178 | C18: 6178 | D18: 100.00% | E18: 6178 | F18: 6178 | G18: 100.00% | H18: - | I18: 0 | J18: - | K18: 2401 | L18: 440 | M18: 18.33% | O18: 玉林市 | P18: 4648 | Q18: 1530 | S18: 440 | T18: 6178 | U18: 1530 | V18: 4648 | W18: 440 | X18: 6178 | Y18: 0 | AH18: 6178 | AI18: 670
A19: 百色市 | B19: 53472 | C19: 57161 | D19: 106.90% | E19: 44714 | F19: 46268 | G19: 103.48% | H19: 8758 | I19: 10893 | J19: 124.38% | K19: 23036 | L19: 484 | M19: 2.10% | O19: 百色市 | P19: 36728 | Q19: 9540 | R19: 10893 | S19: 484 | T19: 57161 | U19: 9540 | V19: 47621 | W19: 484 | X19: 57161 | Y19: 0 | AE19: 0 | AH19: 57161 | AI19: =14481-6827 -> 7654 | AJ19: 6827（为2018年盈余项目，转为2019年国家任务）+48
A20: 贺州市 | B20: 16740 | C20: 16740 | D20: 100.00% | E20: 12303 | F20: 12303 | G20: 100.00% | H20: 4437 | I20: 4437 | J20: 100.00% | K20: 15124 | L20: 1983 | M20: 13.11% | O20: 贺州市 | P20: 9258 | Q20: 3045 | R20: 4437 | S20: 1983 | T20: 16740 | U20: 2903 | V20: 12908 | W20: 1801 | X20: 15811 | Y20: 929 | Z20: 142 | AA20: 759 | AB20: 182 | AF20: 28 | AG20: 512 | AH20: 16740 | AI20: 1685
A21: 河池市 | B21: 3125 | C21: 3125 | D21: 100.00% | E21: =3855-730 -> 3125 | F21: 3125 | G21: 100.00% | H21: - | I21: 0 | J21: - | K21: 956 | L21: 0 | M21: 0.00% | O21: 河池市 | P21: =2564-48 -> 2516 | Q21: =1161-552 -> 609 | S21: 0 | T21: 3125 | U21: 609 | V21: 2516 | X21: 3125 | Y21: 0 | AH21: 3125 | AI21: 609
A22: 来宾市 | B22: =E22+H22 -> 6657 | C22: 4107 | D22: 61.69% | E22: 5995 | F22: 4107 | G22: 68.51% | H22: 662 | I22: 0 | J22: =I22/H22 -> 0.00% | K22: 3506 | L22: 0 | M22: 0.00% | O22: 来宾市 | P22: 1376 | Q22: 2731 | S22: 0 | T22: 4107 | U22: 2731 | V22: 1376 | X22: 4107 | Y22: 0 | AH22: 4107 | AI22: 308
A23: 崇左市 | B23: =E23+H23 -> 15258 | C23: 15258 | D23: 100.00% | E23: 11312 | F23: 12312 | G23: 108.84% | H23: 3946 | I23: 2946 | J23: 74.66% | K23: 9114 | L23: 2300 | M23: 25.24% | O23: 崇左市 | P23: 8293 | Q23: 4019 | R23: 2946 | S23: 2300 | T23: 15258 | U23: 3319 | V23: 11239 | W23: 2300 | X23: 14558 | Y23: 700 | AE23: 700 | AH23: 15258 | AI23: 2919
A24: 区直危旧房改造 | B24: 5373 | C24: =5373+1420 -> 6793 | D24: 126.43% | E24: 5373 | F24: =5373+1420 -> 6793 | G24: 126.43% | H24: - | I24: - | J24: - | K24: - | L24: - | M24: - | O24: 区直危旧房改造 | Q24: 6793 | T24: 6793 | U24: 6793 | X24: =U24+V24+W24 -> 6793 | AH24: 5373
A25: 南宁危旧房改造 | B25: =H25 -> 2712 | C25: =I25 -> 3571 | D25: 131.67% | E25: - | F25: - | G25: - | H25: 2712 | I25: =2712+859 -> 3571 | J25: 131.67% | K25: 2435 | M25: =L25/K25 -> 0.00% | O25: 南宁危旧房改造 | R25: 3571 | T25: 3571 | V25: 3571 | X25: =U25+V25+W25 -> 3571 | AH25: 3571

Sheet 1(定) (2)
A1: 附件1
A2: 2019年全区棚户区改造开工情况通报表 （截至2019年11月25日） | O2: 退了改过 | P2: 今年新开工 | U2: 多 | V2: 少
A3: 任务 城市 | B3: 年度目标责任套（户）数 | C3: 2019年度国家目标任务 | K3: 2019年自治区新增任务 | O3: 任务 城市 | P3: 2019年国家 | Q3: 2018自治区新增 | R3: 2019年国家储备 | S3: 2019自治区新增 | T3: 1+2+3合计 | U3: 新建实物安置 | Z3: 货币安置 | AH3: 合计 | AI3: 2018年开工底数(2018年自治区新增)
C4: 总改造套数 | D4: 总改造完成率 | E4: 2019年国家任务（含2018年自治区新增任务结转） | H4: 2019年国家储备 | Y4: 小计 | Z4: 其中：政府收购房源安置 | AC4: 其中：政府搭桥，居民选购商品住房安置 | AE4: 其中：居民自由支配货币补偿款
E5: 目标责任套数 | F5: 改造户数 | G5: 改造完成率 | H5: 目标责任套数 | I5: 改造户数 | J5: 改造完成率 | K5: 目标任务套数 | L5: 改造户数 | M5: 改造完成率
A7: 编号栏 | B7: 1=4+7 | C7: 2=5+8 | D7: 3=2/1 | E7: 5 | F7: 6 | G7: 7=6/5 | H7: 8 | I7: 9 | J7: 10=9/8 | K7: 11 | L7: 12 | M7: 13=12/11 | P7: 1 | Q7: 2 | R7: 3 | S7: 4 | U7: 2018自新增 | V7: 2019国家 | W7: 2019新增 | X7: 合计 | Z7: 2018自新增 | AA7: 2019国家 | AB7: 2019新增 | AC7: 2018自新增 | AD7: 2019国家 | AE7: 2018自新增 | AF7: 2019国家 | AG7: 2019新增
A8: 国家任务 | B8: 120000 | C8: =SUM(C10:C25) -> 147442 | D8: =C8/B8 -> 122.87% | E8: 120000 | F8: =F9 -> 121073 | G8: =F8/E8 -> 100.89% | H8: - | I8: - | J8: - | K8: - | L8: - | M8: - | O8: 国家任务
A9: 自治区任务数 | B9: =SUM(B10:B25) -> 148678 | C9: =SUM(C10:C25) -> 147442 | D9: 99.17% | E9: =SUM(E10:E24) -> 122309 | F9: =SUM(F10:F24) -> 121073 | G9: 98.99% | H9: =SUM(H10:H25) -> 26369 | I9: =SUM(I10:I25) -> 26369 | J9: =I9/H9 -> 100.00% | K9: =SUM(K10:K25) -> 83516 | L9: =SUM(L10:L25) -> 18728 | M9: =L9/K9 -> 22.42% | O9: 自治区任务数 | T9: =SUM(T10:T25) -> 159060 | U9: =SUM(U10:U23) -> 30846 | V9: 111714 | X9: 142560 | Y9: 6136 | Z9: 142 | AA9: 759 | AB9: 542 | AC9: =SUM(AC10:AC23) -> 0 | AD9: 0 | AE9: 3317 | AF9: 1918 | AG9: 522 | AI9: =SUM(AI10:AI23) -> 23572
A10: 南宁市 | B10: =E10+H10 -> 9050 | C10: =F10+I10 -> 9050 | D10: 100.00% | E10: 7051 | F10: =P10+Q10+321 -> 7051 | G10: 100.00% | H10: 1999 | I10: =R10-321 -> 1999 | J10: 100.00% | K10: 8773 | L10: =S10 -> 1349 | M10: =L10/K10 -> 15.38% | O10: 南宁市 | P10: 4205 | Q10: 2525 | R10: 2320 | S10: 1349 | T10: =P10+Q10+R10 -> 9050 | U10: 2361 | V10: 6525 | X10: =U10+V10 -> 8886 | Y10: =Z10+AA10+AC10+AD10+AE10+AF10 -> 164 | Z10: 0 | AA10: 0 | AC10: 0 | AD10: 0 | AE10: 164 | AF10: 0 | AH10: =U10+V10+Z10+AA10+AC10+AD10+AE10+AF10 -> 9050 | AI10: 2525
A11: 柳州市 | B11: =E11+H11 -> 12189 | C11: =F11+I11 -> 12189 | D11: 100.00% | E11: 11061 | F11: 11061 | G11: 100.00% | H11: 1128 | I11: 1128 | J11: 100.00% | K11: 11020 | L11: 1197 | M11: =L11/K11 -> 10.86% | O11: 柳州市 | P11: 9937 | Q11: 2252 | S11: 1197 | T11: 12189 | U11: 2252 | V11: =7153+1757 -> 8910 | W11: 1197 | X11: 11162 | Y11: 1027 | Z11: 0 | AA11: 0 | AC11: 0 | AD11: 0 | AE11: 0 | AF11: 1027 | AH11: 12189 | AI11: 2252
A12: 桂林市 | B12: =E12 -> 5984 | C12: 6025 | D12: 100.69% | E12: 5984 | F12: =P12+Q12 -> 6025 | G12: 100.69% | H12: - | I12: =R12 -> 0 | J12: - | K12: 5290 | L12: 1940 | M12: 36.67% | O12: 桂林市 | P12: 3590 | Q12: 2435 | S12: 1940 | T12: 6025 | U12: 994 | V12: 3143 | W12: 1940 | X12: 4137 | Y12: 1888 | Z12: 0 | AA12: 0 | AC12: 0 | AD12: 0 | AE12: 1441 | AF12: 447 | AH12: 6025 | AI12: 2369
A13: 梧州市 | B13: =E13+H13 -> 4099 | C13: 4099 | D13: 100.00% | E13: 3766 | F13: 3766 | G13: 100.00% | H13: 333 | I13: 333 | J13: 100.00% | K13: 8402 | L13: 1991 | M13: 23.70% | O13: 梧州市 | P13: 2186 | Q13: 1580 | R13: 333 | S13: 1991 | T13: 4099 | U13: 601 | V13: 2255 | W13: 1981 | X13: 2856 | Y13: 1243 | Z13: 0 | AA13: 0 | AC13: 0 | AD13: 0 | AE13: 979 | AF13: 264 | AG13: 10 | AH13: 4099 | AI13: 0 | AJ13: 藤县藤州镇（田寮片区）棚户区改造工程项目（二期）Ⅱ阶段-2019国家
A14: 北海市 | B14: 241 | C14: 241 | D14: 100.00% | E14: 241 | F14: 241 | G14: 100.00% | H14: - | I14: 0 | J14: - | K14: 574 | L14: 0 | M14: 0.00% | O14: 北海市 | Q14: 241 | S14: 0 | T14: 241 | U14: 241 | V14: 0 | X14: 241 | Y14: 0 | Z14: 0 | AA14: 0 | AC14: 0 | AD14: 0 | AE14: 0 | AF14: 0 | AH14: 241 | AI14: 241
A15: 防城港市 | B15: 1514 | C15: 1514 | D15: 100.00% | E15: 1514 | F15: 1514 | G15: 100.00% | H15: - | I15: 0 | J15: - | K15: 1541 | L15: 0 | M15: 0.00% | O15: 防城港市 | P15: 1514 | S15: 0 | T15: 1514 | V15: 1514 | X15: 1514 | Y15: 0 | AH15: 1514
A16: 钦州市 | B16: =E16+H16 -> 9870 | C16: 9870 | D16: 100.00% | E16: 6791 | F16: 6791 | G16: 100.00% | H16: 3079 | I16: 3079 | J16: =I16/H16 -> 100.00% | K16: 2841 | L16: 0 | M16: 0.00% | O16: 钦州市 | P16: 6413 | Q16: 1499 | R16: 1958 | S16: 0 | T16: 9870 | U16: 1466 | V16: 8219 | X16: 9685 | Y16: 185 | AE16: 33 | AF16: 152 | AH16: 9870 | AI16: 188
A17: 贵港市 | B17: 3139 | C17: 3139 | D17: 100.00% | E17: 2848 | F17: 2848 | G17: 100.00% | H17: 291 | I17: 291 | J17: 100.00% | K17: 4952 | L17: 920 | M17: 18.58% | O17: 贵港市 | P17: 840 | Q17: 2299 | S17: 920 | T17: 3139 | U17: 2299 | V17: 840 | W17: 920 | X17: 3139 | Y17: 0 | AH17: 3139 | AI17: 2152
A18: 玉林市 | B18: =E18 -> 6178 | C18: 6178 | D18: 100.00% | E18: 6178 | F18: 6178 | G18: 100.00% | H18: - | I18: 0 | J18: - | K18: 2522 | L18: 440 | M18: 17.45% | O18: 玉林市 | P18: 4648 | Q18: 1530 | S18: 440 | T18: 6178 | U18: 1530 | V18: 4648 | W18: 440 | X18: 6178 | Y18: 0 | AH18: 6178 | AI18: 670
A19: 百色市 | B19: 53472 | C19: 53472 | D19: 100.00% | E19: 44714 | F19: =P19+Q19-1554 -> 44714 | G19: 100.00% | H19: 8758 | I19: =R19+1554-3689 -> 8758 | J19: 100.00% | K19: 23036 | L19: =S19+3689 -> 4173 | M19: 18.12% | O19: 百色市 | P19: 36728 | Q19: 9540 | R19: 10893 | S19: 484 | T19: 57161 | U19: 9540 | V19: 47621 | W19: 484 | X19: 57161 | Y19: 0 | AE19: 0 | AH19: 57161 | AI19: =14481-6827 -> 7654 | AJ19: 6827（为2018年盈余项目，转为2019年国家任务）+48
A20: 贺州市 | B20: 16740 | C20: 16740 | D20: 100.00% | E20: 12303 | F20: 12303 | G20: 100.00% | H20: 4437 | I20: 4437 | J20: 100.00% | K20: 2147 | L20: =S20 -> 1983 | M20: 92.36% | O20: 贺州市 | P20: 9258 | Q20: 3045 | R20: 4437 | S20: 1983 | T20: 16740 | U20: 2903 | V20: 12908 | W20: 1801 | X20: 15811 | Y20: 929 | Z20: 142 | AA20: 759 | AB20: 182 | AF20: 28 | AG20: 512 | AH20: 16740 | AI20: 1685
A21: 河池市 | B21: 3125 | C21: 3125 | D21: 100.00% | E21: =3855-730 -> 3125 | F21: 3125 | G21: 100.00% | H21: - | I21: 0 | J21: - | K21: 956 | L21: 0 | M21: 0.00% | O21: 河池市 | P21: =2564-48 -> 2516 | Q21: =1161-552 -> 609 | S21: 0 | T21: 3125 | U21: 609 | V21: 2516 | X21: 3125 | Y21: 0 | AH21: 3125 | AI21: 609
A22: 来宾市 | B22: 5384 | C22: 4107 | D22: 76.28% | E22: =5995-611 -> 5384 | F22: 4107 | G22: 76.28% | H22: - | I22: 0 | J22: - | K22: 500 | L22: 0 | M22: 0.00% | O22: 来宾市 | P22: 1376 | Q22: 2731 | S22: 0 | T22: 4107 | U22: 2731 | V22: 1376 | X22: 4107 | Y22: 0 | AH22: 4107 | AI22: 308
A23: 崇左市 | B23: =E23+H23 -> 15258 | C23: 15258 | D23: 100.00% | E23: 11312 | F23: 11312 | G23: 100.00% | H23: 3946 | I23: 3946 | J23: =I23/H23 -> 100.00% | K23: 8527 | L23: 2300 | M23: 26.97% | O23: 崇左市 | P23: 8293 | Q23: 4019 | R23: 2946 | S23: 2300 | T23: 15258 | U23: 3319 | V23: 11239 | W23: 2300 | X23: 14558 | Y23: 700 | AE23: 700 | AH23: 15258 | AI23: 2919
A24: 区直危旧房改造 | B24: =E24 -> 37 | C24: 37 | D24: 100.00% | E24: =5373-5013-323 -> 37 | F24: =5373+1420-5013-323-1420 -> 37 | G24: 100.00% | H24: - | I24: 0 | J24: - | K24: - | L24: - | M24: - | O24: 区直危旧房改造 | Q24: 6793 | T24: 6793 | U24: 6793 | X24: =U24+V24+W24 -> 6793 | AH24: 5373
A25: 南宁危旧房改造 | B25: =H25 -> 2398 | C25: =I25 -> 2398 | D25: 100.00% | E25: - | F25: - | G25: - | H25: =2712-314 -> 2398 | I25: =2712-314 -> 2398 | J25: 100.00% | K25: 2435 | L25: 2435 | M25: 100.00% | O25: 南宁危旧房改造 | R25: 3571 | T25: 3571 | V25: 3571 | X25: =U25+V25+W25 -> 3571 | AH25: 3571
